[Event "World Junior U20 Open 2018"]
[Site "Gebze"]
[Date "2018.09.14"]
[Round "10.38"]
[White "Muradli, Mahammad"]
[Black "Shailesh, Dravid"]
[Result "1/2-1/2"]
[ECO "E94"]
[WhiteElo "2407"]
[BlackElo "2325"]
[Annotator "ChessBase"]
[PlyCount "92"]
[EventDate "2018.09.05"]
[EventType "swiss"]
[EventCountry "TUR"]
[SourceTitle "playchess.com"]
[Source "ChessBase"]
[SourceQuality "1"]
[TimeControl "40/5400+30:1800+30"]

1. d4 Nf6 2. c4 g6 3. Nc3 Bg7 4. e4 d6 5. Be2 O-O 6. Be3 Na6 7. Nf3 e5 8. O-O Ng4 9. Bg5 f6 10. Bc1 c6 {[%emt 0:10:00]} 11. h3 {[%emt 0:32:30]} Nh6 {[%emt 0:00:30]} 12. c5 {[%emt 0:00:30]} Nf7 {[%emt 0:12:30]} 13. Bxa6 {[%emt 0:12:30]} bxa6 {[%emt 0:01:30]} 14. Qb3 {[%emt 0:01:30]} dxc5 {[%emt 0:00:30]} 15. dxe5 {[%emt 0:01:30]} fxe5 {[%emt 0:00:30]} 16. Be3 {[%emt 0:02:30]} Qf6 {[%emt 0:01:30]} 17. Ng5 {[%emt 0:09:30]} Kh8 {[%emt 0:01:30]} 18. Nxf7+ {[%emt 0:01:30]} Rxf7 {[%emt 0:00:30]} 19. Rad1 {[%emt 0:03:30]} Be6 {[%emt 0:02:30]} 20. Qa4 {[%emt 0:00:30]} Bd7 {[%emt 0:01:30]} 21. f3 {[%emt 0:03:30]} Qh4 {[%emt 0:03:30]} 22. Qc4 {[%emt 0:03:30]} Raf8 {[%emt 0:03:30]} 23. Qe2 {[%emt 0:03:30]} Bh6 {[%emt 0:04:30]} 24. Bxh6 {[%emt 0:05:30]} Qxh6 {[%emt 0:02:30]} 25. Na4 {[%emt 0:01:20]} Qg5 {[%emt 0:01:30]} 26. Kh1 {[%emt 0:03:14]} Qh5 {[%emt 0:00:30]} 27. Kh2 {[%emt 0:03:00]} c4 {[%emt 0:06:30]} 28. Nc5 {[%emt 0:01:13]} Bc8 {[%emt 0:00:30]} 29. Qf2 {[%emt 0:02:25]} Qg5 {[%emt 0:03:30]} 30. Rd6 {[%emt 0:00:31]} Rf6 {[%emt 0:01:30]} 31. Rfd1 {[%emt 0:01:31]} Rf4 {[%emt 0:02:30]} 32. Rxc6 {[%emt 0:01:09]} Bxh3 {[%emt 0:01:30]} 33. gxh3 {[%emt 0:00:19]} Qh5 {[%emt 0:00:30]} 34. Qg2 {[%emt 0:05:59]} Rxf3 {[%emt 0:00:30]} 35. Rd2 {[%emt 0:00:14]} Qh6 {[%emt 0:00:30]} 36. Ne6 {[%emt 0:00:37]} Rxh3+ {[%emt 0:00:30]} 37. Qxh3 {[%emt 0:00:37]} Qxd2+ {[%emt 0:00:30]} 38. Qg2 {[%emt 0:00:00]} Qh6+ {[%emt 0:00:30]} 39. Qh3 {[%emt 0:00:59]} Qd2+ {[%emt 0:00:30]} 40. Qg2 {[%emt 0:00:00]} Qh6+ {[%emt 0:00:00]} 41. Kg3 {[%emt 0:11:22]} Qe3+ {[%emt 0:00:00]} 42. Kh4 {[%emt 0:00:30]} Qh6+ {[%emt 0:00:30]} 43. Kg4 {[%emt 0:02:30]} Rf4+ {[%emt 0:00:30]} 44. Nxf4 {[%emt 0:00:30]} Qxf4+ {[%emt 0:00:30]} 45. Kh3 {[%emt 0:00:30]} Qh6+ {[%emt 0:00:00]} 46. Kg3 {[%emt 0:00:00]} Qf4+ {[%emt 0:00:00]} 1/2-1/2

[Event "World Junior U20 Open 2018"]
[Site "Gebze"]
[Date "2018.09.14"]
[Round "10.41"]
[White "Dobrovoljc, Vid"]
[Black "Secheres, Adrian-Simion"]
[Result "1/2-1/2"]
[ECO "E71"]
[WhiteElo "2316"]
[BlackElo "2408"]
[Annotator "NA"]
[PlyCount "82"]
[EventDate "2018.09.05"]
[EventType "swiss"]
[EventCountry "TUR"]
[SourceTitle "playchess.com"]
[Source "ChessBase"]
[SourceQuality "1"]
[TimeControl "40/5400+30:1800+30"]

1. d4 Nf6 2. c4 g6 3. Nc3 Bg7 4. e4 d6 5. h3 O-O 6. Be3 e5 7. d5 a5 8. g4 {E71: King's Indian: 4 e4 d6 5 h3} Na6 9. Nge2 c6 10. Ng3 cxd5 (10... Nc5 11. g5 Nfd7 12. h4 cxd5 13. Nxd5 Nb6 14. Nc3 Be6 15. b3 a4 {1-0 (36) Ding,L (2777)-Amonatov,F (2636) Riadh 2017}) 11. cxd5 Bd7 12. Be2 Nc5 {[%emt 0:29:00]} 13. h4 {[%emt 0:13:30]} a4 {[%emt 0:01:30]} 14. f3 {[%emt 0:13:30]} Qa5 {[%emt 0:08:30]} 15. Qd2 {[%emt 0:00:00]} Rfc8 {[%emt 0:01:30]} 16. Rb1 $146 {[%emt 0:06:00]} b5 {[%emt 0:03:30]} 17. h5 {[%emt 0:06:30]} b4 {[%emt 0:04:30]} 18. Nd1 {[%emt 0:00:30]} Bb5 {[%emt 0:04:30]} 19. Bxb5 {[%emt 0:13:30]} Qxb5 {[%emt 0:00:30]} 20. Qe2 {[%emt 0:00:30]} Qb7 {[%emt 0:10:30]} 21. Rc1 {[%emt 0:10:30]} a3 {[%emt 0:04:30]} 22. Bxc5 {[%emt 0:07:30]} axb2 {[%emt 0:00:30]} 23. Qxb2 {[%emt 0:00:30]} Rxc5 {[%emt 0:00:30]} 24. Rxc5 {[%emt 0:00:30]} dxc5 {[%emt 0:00:30]} 25. g5 {[%emt 0:02:30]} Ne8 {[%emt 0:00:30]} 26. Ne3 {[%emt 0:01:30]} Ra3 {[%emt 0:08:30]} 27. Qe2 {[%emt 0:05:30]} Qa7 $19 {[%emt 0:09:50]} 28. Rh2 {[%emt 0:00:30]} Nd6 {[%emt 0:00:32]} 29. Rf2 {[%emt 0:03:15]} Rc3 {[%emt 0:07:10]} 30. Nd1 {[%emt 0:02:34]} Rc4 {[%emt 0:00:53]} 31. Nf1 {[%emt 0:00:27]} Rd4 {[%emt 0:01:06]} 32. Nfe3 {[%emt 0:01:26]} Qa5 {[%emt 0:01:26]} 33. Kf1 {[%emt 0:00:34]} c4 {[%emt 0:00:46]} 34. Nc2 {[%emt 0:01:22]} Rd3 {[%emt 0:00:25]} 35. Nb2 {[%emt 0:01:11]} Rc3 {[%emt 0:01:20]} 36. Nd1 {[%emt 0:00:33]} Rd3 {[%emt 0:00:49]} 37. Nb2 {[%emt 0:00:05]} Qb5 {[%emt 0:01:41]} 38. Kg2 {[%emt 0:00:36]} Rc3 {[%emt 0:00:35]} 39. Nd1 {[%emt 0:00:22]} Rd3 {[%emt 0:00:15]} 40. Nb2 {[%emt 0:00:00]} Rc3 {[%emt 0:00:00]} 41. Nd1 {[%emt 0:01:05]} Rd3 {[%emt 0:04:42]} 1/2-1/2

[Event "World Junior U20 Open 2018"]
[Site "Gebze"]
[Date "2018.09.14"]
[Round "10.42"]
[White "Agdelen, Huseyin Can"]
[Black "Garayev, Kanan"]
[Result "0-1"]
[ECO "C78"]
[WhiteElo "2280"]
[BlackElo "2404"]
[Annotator "ChessBase"]
[PlyCount "62"]
[EventDate "2018.09.05"]
[EventType "swiss"]
[EventCountry "TUR"]
[SourceTitle "playchess.com"]
[Source "ChessBase"]
[SourceQuality "1"]
[TimeControl "40/5400+30:1800+30"]

1. e4 e5 2. Nf3 Nc6 3. Bb5 a6 4. Ba4 Nf6 5. O-O b5 6. Bb3 Bc5 7. a4 Rb8 8. c3 d6 9. d4 Bb6 10. a5 Ba7 11. h3 O-O 12. Be3 Ra8 {[%emt 0:18:00]} 13. Nbd2 {[%emt 0:22:30]} h6 {[%emt 0:00:30]} 14. Re1 {[%emt 0:00:30]} Bb7 {[%emt 0:01:30]} 15. dxe5 {[%emt 0:27:30]} Nxe5 {[%emt 0:09:30]} 16. Nxe5 {[%emt 0:02:30]} dxe5 {[%emt 0:01:30]} 17. Bxa7 {[%emt 0:02:30]} Rxa7 {[%emt 0:00:30]} 18. Qe2 {[%emt 0:00:30]} c5 {[%emt 0:09:30]} 19. Qe3 {[%emt 0:04:30]} Ra8 {[%emt 0:01:30]} 20. Bc2 {[%emt 0:04:30]} Qe7 {[%emt 0:02:30]} 21. Nf1 {[%emt 0:02:30]} Nh5 {[%emt 0:04:30]} 22. Red1 {[%emt 0:10:30]} Nf4 {[%emt 0:02:30]} 23. Kh2 {[%emt 0:13:58]} h5 {[%emt 0:14:30]} 24. Ng3 {[%emt 0:03:27]} Qg5 {[%emt 0:03:30]} 25. Rg1 {[%emt 0:00:57]} Rad8 {[%emt 0:01:30]} 26. Rad1 {[%emt 0:00:38]} Rxd1 {[%emt 0:00:30]} 27. Bxd1 {[%emt 0:00:02]} Rd8 {[%emt 0:00:30]} 28. Bxh5 {[%emt 0:03:38]} Rd3 {[%emt 0:03:30]} 29. Qc1 {[%emt 0:00:04]} Rd6 {[%emt 0:11:09]} 30. Be2 {[%emt 0:01:57]} Rh6 {[%emt 0:00:26]} 31. Bf1 {[%emt 0:01:03]} Nxh3 {[%emt 0:01:52]} 0-1

[Event "World Junior U20 Open 2018"]
[Site "Gebze"]
[Date "2018.09.14"]
[Round "10.43"]
[White "Nikolovski, Nikola"]
[Black "Suleymenov, Alisher"]
[Result "1/2-1/2"]
[ECO "B61"]
[WhiteElo "2388"]
[BlackElo "2307"]
[Annotator "NA"]
[PlyCount "99"]
[EventDate "2018.09.05"]
[EventType "swiss"]
[EventCountry "TUR"]
[SourceTitle "playchess.com"]
[Source "ChessBase"]
[SourceQuality "1"]
[TimeControl "40/5400+30:1800+30"]

1. e4 c5 2. Nf3 Nc6 3. d4 cxd4 4. Nxd4 Nf6 5. Nc3 d6 6. Bg5 Bd7 7. Qd2 Rc8 8. O-O-O Nxd4 9. Qxd4 Qa5 10. Bd2 a6 11. Kb1 Qc5 12. Qxc5 {B61: Sicilian: Richter-Rauzer: 6...Bd7 7 Qd2} Rxc5 13. Be3 {[%emt 0:24:30]} Rc8 {[%emt 0:14:30]} 14. f3 {[%emt 0:00:30]} g6 {[%emt 0:00:30]} 15. Bd4 {[%emt 0:00:30]} Bg7 {[%emt 0:00:30] [#]} 16. Be2 $146 {[%emt 0:12:30]} ({Predecessor:} 16. Nd5 e5 17. Nxf6+ Bxf6 18. Bc3 Rc6 19. h4 h5 {½-½ (34) Dominguez Perez,L (2658)-Dreev,A (2705) Dos Hermanas 2005}) 16... O-O {[%emt 0:02:30]} 17. g4 {[%emt 0:03:30]} Be6 {[%emt 0:19:30]} 18. h4 {[%emt 0:01:30]} Nd7 {[%emt 0:04:30]} 19. f4 {[%emt 0:06:30]} Bxd4 {[%emt 0:09:30]} 20. Rxd4 {[%emt 0:00:30]} f6 {[%emt 0:00:30]} 21. Nd1 {[%emt 0:15:30]} h6 {[%emt 0:09:30]} 22. f5 {[%emt 0:06:30]} Bf7 {[%emt 0:04:30]} 23. fxg6 {[%emt 0:00:30]} Bxg6 {[%emt 0:00:30]} 24. Bc4+ {[%emt 0:00:30]} Bf7 {[%emt 0:04:30]} 25. Bd5 {[%emt 0:00:30]} Rc7 {[%emt 0:07:30]} 26. Ne3 {[%emt 0:01:30]} Ne5 {[%emt 0:04:30]} 27. Rdd1 {[%emt 0:03:30]} b5 {[%emt 0:03:47]} 28. a3 {[%emt 0:02:30]} a5 {[%emt 0:03:55]} 29. Rh3 {[%emt 0:07:53]} Kg7 {[%emt 0:02:59]} 30. Rf1 {[%emt 0:08:21]} e6 {[%emt 0:06:56]} 31. Bb3 {[%emt 0:00:06]} Re7 {[%emt 0:00:00]} 32. Rh2 {[%emt 0:01:19]} Bg6 {[%emt 0:00:16]} 33. Rd2 {[%emt 0:00:16]} Nf7 {[%emt 0:02:12]} 34. Rf4 {[%emt 0:03:32]} Rc8 {[%emt 0:02:22]} 35. Kc1 {[%emt 0:02:36]} Rc5 {[%emt 0:00:32]} 36. Rdf2 {[%emt 0:01:05]} Re5 {[%emt 0:00:16]} 37. Rxf6 {[%emt 0:00:20]} Rxe4 {[%emt 0:00:33]} 38. Kd2 {[%emt 0:00:16]} a4 {[%emt 0:01:01]} 39. Ba2 {[%emt 0:00:23]} d5 {[%emt 0:00:16]} 40. c3 {[%emt 0:00:00]} d4 {[%emt 0:00:00]} 41. cxd4 {[%emt 0:05:23]} Rxd4+ {[%emt 0:03:25]} 42. Ke2 {[%emt 0:02:30]} Bd3+ {[%emt 0:20:01]} 43. Ke1 {[%emt 0:02:30]} Rc7 {[%emt 0:01:23]} 44. Rxe6 {[%emt 0:07:37]} Nd6 $14 {[%emt 0:02:37]} (44... Rc1+ $1 $11 45. Kd2 Rc7) 45. Rd2 {[%emt 0:01:50]} Rc5 {[%emt 0:06:14]} 46. Kf2 {[%emt 0:13:46]} Nc4 {[%emt 0:00:10]} 47. Bxc4 {[%emt 0:01:10]} bxc4 {[%emt 0:00:30]} 48. Rd1 {[%emt 0:00:30]} Rf4+ {[%emt 0:00:30]} 49. Kg3 {[%emt 0:00:30]} Rf7 {[%emt 0:00:12]} 50. Rd2 {[%emt 0:00:52]} 1/2-1/2

[Event "World Junior U20 Open 2018"]
[Site "Gebze"]
[Date "2018.09.14"]
[Round "10.44"]
[White "Agibileg, Uurtsaikh"]
[Black "Ozer, Omer Faruk"]
[Result "1-0"]
[ECO "A88"]
[WhiteElo "2321"]
[BlackElo "2388"]
[Annotator "NA"]
[PlyCount "105"]
[EventDate "2018.09.05"]
[EventType "swiss"]
[EventCountry "TUR"]
[SourceTitle "playchess.com"]
[Source "ChessBase"]
[SourceQuality "1"]
[TimeControl "40/5400+30:1800+30"]

1. d4 f5 2. c4 Nf6 3. Nc3 g6 4. Nf3 Bg7 5. g3 O-O 6. Bg2 d6 7. O-O c6 8. Re1 Na6 9. Bf4 h6 10. e4 {[%emt 0:19:00]} g5 {[%emt 0:22:00]} 11. Bd2 {[%emt 0:00:30]} fxe4 {[%emt 0:00:30]} 12. Nxe4 {[%emt 0:00:30]} Nxe4 {[%emt 0:09:30]} 13. Rxe4 {[%emt 0:00:30]} Bf5 {[%emt 0:00:30]} 14. Re3 $14 {[%emt 0:03:30]} Rf7 {[%emt 0:15:30]} 15. Bc3 {[%emt 0:02:30]} Qb6 {[%emt 0:01:30]} 16. Qe1 {[%emt 0:01:30]} Qc7 {[%emt 0:02:30]} 17. d5 {[%emt 0:01:30]} c5 {[%emt 0:00:30]} 18. a3 {[%emt 0:03:30]} Raf8 {[%emt 0:05:30]} 19. h4 {[%emt 0:02:30]} Bxc3 {[%emt 0:10:30]} 20. Qxc3 {[%emt 0:00:30]} Rg7 {[%emt 0:00:30]} 21. Rae1 {[%emt 0:04:30]} Rff7 {[%emt 0:00:00]} 22. h5 {[%emt 0:07:30]} Qc8 {[%emt 0:03:00]} 23. b4 {[%emt 0:09:30]} Qf8 {[%emt 0:09:30]} 24. Nh2 {[%emt 0:02:30]} g4 {[%emt 0:00:37]} 25. R1e2 {[%emt 0:00:30]} b6 {[%emt 0:01:17]} 26. Be4 {[%emt 0:01:30]} Nc7 {[%emt 0:02:27]} 27. bxc5 {[%emt 0:01:30]} bxc5 {[%emt 0:00:37]} 28. Qe1 {[%emt 0:00:30]} e5 {[%emt 0:06:07]} 29. dxe6 {[%emt 0:00:30]} Re7 {[%emt 0:03:33]} 30. Bxf5 {[%emt 0:04:30]} Qxf5 {[%emt 0:00:30]} 31. Re4 {[%emt 0:00:30]} Qxh5 {[%emt 0:00:30]} 32. Rd2 {[%emt 0:00:30]} Ne8 {[%emt 0:00:30]} 33. Qe2 {[%emt 0:00:30]} Qg6 {[%emt 0:00:30]} 34. Nxg4 {[%emt 0:00:30]} h5 {[%emt 0:00:30]} 35. Nh2 {[%emt 0:00:30]} Nf6 {[%emt 0:00:00]} 36. Rh4 {[%emt 0:00:30]} Ne8 {[%emt 0:00:13]} 37. Qxh5 {[%emt 0:01:30]} Qxh5 {[%emt 0:00:30]} 38. Rxh5 {[%emt 0:00:30]} Rxe6 {[%emt 0:00:00]} 39. Nf3 {[%emt 0:00:30]} Rb7 {[%emt 0:01:04]} 40. Rhd5 {[%emt 0:00:00]} Re4 {[%emt 0:00:00]} 41. Rg5+ {[%emt 0:10:00]} Kf8 {[%emt 0:02:05]} 42. Rf5+ {[%emt 0:00:30]} Kg8 {[%emt 0:01:30]} 43. Ng5 {[%emt 0:01:30]} Rxc4 {[%emt 0:00:30]} 44. Re2 {[%emt 0:00:30]} Ng7 {[%emt 0:00:30]} 45. Rf6 {[%emt 0:01:30]} Rd4 {[%emt 0:07:30]} 46. Rg6 {[%emt 0:00:30]} Kf8 {[%emt 0:01:30]} 47. Rh6 {[%emt 0:01:30]} Kg8 {[%emt 0:02:30]} 48. Kg2 {[%emt 0:00:00]} Rd3 {[%emt 0:08:10]} 49. Re1 {[%emt 0:00:00]} Rb2 {[%emt 0:00:44]} 50. Rg6 {[%emt 0:05:30]} Kf8 {[%emt 0:00:20]} 51. Re4 {[%emt 0:00:00]} Rd4 {[%emt 0:00:44]} 52. Rf6+ {[%emt 0:00:00]} Kg8 {[%emt 0:00:05]} 53. Re7 {[%emt 0:00:30]} 1-0

[Event "World Junior U20 Open 2018"]
[Site "Gebze"]
[Date "2018.09.14"]
[Round "10.45"]
[White "Agmanov, Zhandos"]
[Black "Petkov, Momchil"]
[Result "1/2-1/2"]
[ECO "B31"]
[WhiteElo "2379"]
[BlackElo "2163"]
[Annotator "NA"]
[PlyCount "85"]
[EventDate "2018.09.05"]
[EventType "swiss"]
[EventCountry "TUR"]
[SourceTitle "playchess.com"]
[Source "ChessBase"]
[SourceQuality "1"]
[TimeControl "40/5400+30:1800+30"]

1. e4 c5 2. Nf3 Nc6 3. Bb5 g6 4. O-O Bg7 5. Bxc6 dxc6 6. d3 Nf6 7. h3 O-O 8. Nc3 b6 9. Be3 e5 {B31: Sicilian: 2...Nc6 3 Bb5 g6} 10. Qd2 (10. a3 Qe7 11. Qb1 Nh5 12. b4 f5 13. bxc5 f4 14. Bd2 bxc5 15. Qb3+ Be6 {0-1 (39) Caruana,F (2820)-Carlsen,M (2862) Wijk aan Zee 2015 CBM 165 [Stohl,I]}) 10... Qd6 11. Bh6 Ne8 12. Ne2 Nc7 {[%emt 0:17:00]} 13. Nh2 {[%emt 0:40:30] [#]} Ne6 $146 {[%emt 0:31:30]} ({Predecessor:} 13... Qf6 14. Bxg7 Qxg7 15. c3 Ba6 16. Rad1 Rad8 17. Qe3 f5 18. f4 exf4 19. Nxf4 Rfe8 20. Qg3 fxe4 21. Ng4 Rf8 22. Rfe1 exd3 23. Nxd3 {½-½ (23) Zulfugarli,M (2430)-Guseinov,G (2527) Moscow 2002}) 14. Bxg7 {[%emt 0:03:30]} Nxg7 {[%emt 0:06:30]} 15. f4 {[%emt 0:03:30]} f5 {[%emt 0:04:30]} 16. fxe5 {[%emt 0:32:20]} Qxe5 {[%emt 0:01:30]} 17. Nc3 {[%emt 0:00:05]} Qd4+ {[%emt 0:06:30]} 18. Qf2 {[%emt 0:01:44]} Be6 {[%emt 0:07:30]} 19. Nf3 {[%emt 0:00:22]} Qxf2+ {[%emt 0:02:30]} 20. Rxf2 {[%emt 0:00:18]} fxe4 {[%emt 0:04:12]} 21. dxe4 {[%emt 0:00:59]} Rad8 {[%emt 0:00:52]} 22. Rff1 {[%emt 0:00:23]} Nh5 {[%emt 0:02:53]} 23. Ne5 {[%emt 0:07:44]} Rd2 {[%emt 0:02:03]} 24. Rxf8+ {[%emt 0:00:37]} Kxf8 {[%emt 0:00:30]} 25. Rf1+ {[%emt 0:00:30]} Kg7 {[%emt 0:00:30]} 26. Rf2 {[%emt 0:00:30]} Rd6 {[%emt 0:00:30]} 27. Nf3 {[%emt 0:03:05]} h6 {[%emt 0:01:17]} 28. Kh2 {[%emt 0:00:33]} g5 {[%emt 0:01:00]} 29. g3 {[%emt 0:00:22]} Rd8 {[%emt 0:03:38]} 30. Ne5 {[%emt 0:00:09]} Rd6 $11 {[%emt 0:00:36]} 31. Nd3 {[%emt 0:03:11]} c4 {[%emt 0:01:50]} 32. Ne5 {[%emt 0:00:20]} b5 {[%emt 0:00:43]} 33. Nf3 {[%emt 0:01:39]} a5 {[%emt 0:01:38]} 34. a3 {[%emt 0:01:11]} Rd8 {[%emt 0:02:04]} 35. Ne5 {[%emt 0:00:04]} Rd6 {[%emt 0:00:09]} 36. Nf3 {[%emt 0:00:06]} Rd8 {[%emt 0:00:23]} 37. e5 {[%emt 0:00:36]} Rf8 {[%emt 0:01:50]} 38. Ne4 {[%emt 0:00:33]} Bd5 {[%emt 0:01:12]} 39. Nd4 {[%emt 0:00:00]} Rxf2+ {[%emt 0:03:28]} 40. Nxf2 {[%emt 0:00:00]} Kg6 {[%emt 0:00:00]} 41. c3 {[%emt 0:04:39]} Ng7 {[%emt 0:03:42]} 42. g4 {[%emt 0:01:30]} Ne8 {[%emt 0:08:30]} 43. Kg3 {[%emt 0:08:30]} 1/2-1/2

[Event "World Junior U20 Open 2018"]
[Site "Gebze"]
[Date "2018.09.14"]
[Round "10.46"]
[White "Philippe, Guillaume"]
[Black "Kamer, Kayra"]
[Result "1/2-1/2"]
[ECO "B33"]
[WhiteElo "2358"]
[BlackElo "2205"]
[Annotator "NA"]
[PlyCount "91"]
[EventDate "2018.09.05"]
[EventType "swiss"]
[EventCountry "TUR"]
[SourceTitle "playchess.com"]
[Source "ChessBase"]
[SourceQuality "1"]
[TimeControl "40/5400+30:1800+30"]

1. e4 c5 2. Nf3 e6 3. d4 cxd4 4. Nxd4 a6 5. Bd3 Bc5 6. Nb3 Be7 7. O-O Nc6 8. Nc3 Nf6 9. f4 d6 10. Qf3 Qc7 11. Be3 h5 {B33: Sizilianisch (Lasker/Pelikan/Sweschnikow-Variante)} (11... O-O 12. a4 b6 13. g4 Re8 14. g5 Nd7 15. Qg3 Bf8 16. h4 Nb4 17. h5 Nc5 18. Nxc5 bxc5 19. g6 d5 20. gxf7+ Qxf7 {0-1 (59) Van Foreest,J (2600)-Iturrizaga Bonelli,E (2662) Vlissingen 2017}) 12. h3 h4 13. Qf2 b6 14. a4 Nd7 $146 ({Vorgänger:} 14... Rb8 15. Nd4 Nh5 16. Ncb5 Qb7 17. Nxc6 Qxc6 18. Na7 Qc7 19. Nxc8 Qxc8 20. Bxb6 {1-0 (49) Peczely,S (2165)-Schneider,V (2266) Hungary 2013}) 15. Nd4 {[%emt 0:28:30]} Nb4 {[%emt 0:20:30]} 16. Rac1 {[%emt 0:05:30]} Bb7 {[%emt 0:01:30]} 17. f5 {[%emt 0:00:30]} e5 {[%emt 0:00:30]} 18. Nb3 {[%emt 0:03:30]} d5 {[%emt 0:03:30]} 19. exd5 {[%emt 0:01:30]} Nxd5 {[%emt 0:00:30]} 20. Nxd5 {[%emt 0:00:30]} Bxd5 {[%emt 0:00:30]} 21. c4 {[%emt 0:00:30]} Bc6 {[%emt 0:00:00]} 22. c5 {[%emt 0:00:30]} b5 {[%emt 0:00:00]} 23. axb5 {[%emt 0:07:30]} axb5 {[%emt 0:00:30]} 24. Nd2 {[%emt 0:00:30]} Qb7 {[%emt 0:00:30]} 25. b4 {[%emt 0:01:30]} Ra4 {[%emt 0:00:30]} 26. Rb1 {[%emt 0:02:30]} Nf6 {[%emt 0:08:30]} 27. Bc2 {[%emt 0:02:30]} Ra2 {[%emt 0:00:30]} 28. Rfc1 {[%emt 0:02:30]} Rh5 {[%emt 0:07:30]} 29. Qe2 {[%emt 0:02:30]} Qa8 {[%emt 0:09:30]} 30. Nb3 {[%emt 0:06:30]} Rxf5 {[%emt 0:05:30]} 31. Na5 {[%emt 0:00:30]} Nd5 {[%emt 0:09:30]} 32. Bd2 {[%emt 0:00:00]} Bg5 {[%emt 0:15:30]} 33. Bxf5 {[%emt 0:07:00]} Be3+ {[%emt 0:00:00]} 34. Kh1 {[%emt 0:00:30]} Rxd2 {[%emt 0:01:00]} 35. Qh5 {[%emt 0:00:30]} Nc3 {[%emt 0:07:00]} (35... Nf4 $11 {bleibt in der Remisbreite.} 36. Qh8+ Ke7 37. Nxc6+ (37. Qxh4+ $2 f6 $19) 37... Qxc6 38. Qxg7 Nh5 39. Qxe5+ Kf8 40. Qb8+ (40. Be4 Qxe4 41. Qxe4 Ng3+ 42. Kh2 Nxe4 $15) 40... Kg7 41. Qe5+ Kf8) 36. Qh8+ {[%emt 0:07:30]} Ke7 {[%emt 0:00:01]} 37. Nxc6+ {[%emt 0:00:00]} Qxc6 {[%emt 0:00:03]} 38. Qxg7 {[%emt 0:00:00]} Nxb1 {[%emt 0:03:57]} 39. Qxe5+ {[%emt 0:01:30]} Kd8 {[%emt 0:01:23]} 40. Be4 {[%emt 0:00:00]} Qd7 {[%emt 0:00:00]} 41. Bf3 {[%emt 0:09:00]} Rxg2 {[%emt 0:09:06]} 42. Qf6+ {[%emt 0:27:54]} Kc8 {[%emt 0:02:30]} 43. Qa6+ $11 {[%emt 0:02:24]} Kd8 {[%emt 0:01:30]} 44. Qf6+ {[%emt 0:03:26]} Kc8 {[%emt 0:01:30]} 45. Qa6+ {[%emt 0:06:32]} Kd8 {[%emt 0:00:30]} 46. Qf6+ {[%emt 0:00:20]} 1/2-1/2

[Event "World Junior U20 Open 2018"]
[Site "Gebze"]
[Date "2018.09.14"]
[Round "10.47"]
[White "Murzin, Volodar"]
[Black "Nyambileg, Erdene-Ochir"]
[Result "1-0"]
[ECO "C50"]
[WhiteElo "2349"]
[BlackElo "1798"]
[Annotator "ChessBase"]
[PlyCount "41"]
[EventDate "2018.09.05"]
[EventType "swiss"]
[EventCountry "TUR"]
[SourceTitle "playchess.com"]
[Source "ChessBase"]
[SourceQuality "1"]
[TimeControl "40/5400+30:1800+30"]

1. e4 e5 2. Nf3 Nc6 3. Bc4 Bc5 4. O-O Nf6 5. d3 O-O 6. a4 d5 7. exd5 Nxd5 8. Re1 Bg4 9. h3 Bh5 10. Nbd2 Nb6 11. Bb5 f6 12. Bxc6 bxc6 13. Ne4 Bd6 {[%emt 0:26:30]} 14. Ng3 {[%emt 0:31:00]} Bf7 {[%emt 0:00:30]} 15. a5 {[%emt 0:00:30]} Nd5 {[%emt 0:01:30]} 16. d4 {[%emt 0:16:30]} exd4 {[%emt 0:06:30]} 17. Nxd4 {[%emt 0:03:30]} Bxg3 {[%emt 0:16:30]} 18. fxg3 {[%emt 0:00:30]} Qd7 {[%emt 0:01:30]} 19. Qf3 {[%emt 0:08:30]} c5 {[%emt 0:08:30]} 20. Nf5 {[%emt 0:01:30]} Bg6 {[%emt 0:01:30]} 21. Qxd5+ {[%emt 0:00:30]} 1-0

[Event "World Junior U20 Open 2018"]
[Site "Gebze"]
[Date "2018.09.14"]
[Round "10.48"]
[White "Wong, Yinn Long"]
[Black "Galperin, Platon"]
[Result "1/2-1/2"]
[ECO "B48"]
[WhiteElo "2261"]
[BlackElo "2348"]
[Annotator "ChessBase"]
[PlyCount "80"]
[EventDate "2018.09.05"]
[EventType "swiss"]
[EventCountry "TUR"]
[SourceTitle "playchess.com"]
[Source "ChessBase"]
[SourceQuality "1"]
[TimeControl "40/5400+30:1800+30"]

1. e4 c5 2. Nf3 e6 3. d4 cxd4 4. Nxd4 Nc6 5. Nc3 Qc7 6. Be3 a6 7. Bd3 Nf6 8. O-O Bd6 9. f4 Nxd4 10. e5 Bc5 11. exf6 {[%emt 0:04:30]} Nxc2 {[%emt 0:37:30]} 12. fxg7 {[%emt 0:00:30]} Rg8 {[%emt 0:06:30]} 13. Qxc2 {[%emt 0:04:30]} Bxe3+ {[%emt 0:00:30]} 14. Kh1 {[%emt 0:00:30]} Rxg7 {[%emt 0:03:30]} 15. Rae1 {[%emt 0:10:30]} Bd4 {[%emt 0:05:30]} 16. f5 {[%emt 0:18:30]} Bxc3 {[%emt 0:02:30]} 17. bxc3 {[%emt 0:00:30]} b5 {[%emt 0:10:30]} 18. fxe6 {[%emt 0:05:30]} dxe6 {[%emt 0:01:30]} 19. Qf2 {[%emt 0:10:30]} Kf8 {[%emt 0:00:30]} 20. Be4 {[%emt 0:02:30]} Rb8 {[%emt 0:00:00]} 21. Qf6 {[%emt 0:03:30]} Bb7 {[%emt 0:04:00]} 22. Qxe6 {[%emt 0:02:30]} Kg8 {[%emt 0:00:30]} 23. Qf6 {[%emt 0:04:30]} Bxe4 {[%emt 0:00:30]} 24. Rxe4 {[%emt 0:00:30]} Rg6 {[%emt 0:00:30]} 25. Qe7 {[%emt 0:05:30]} Rb7 {[%emt 0:03:30]} 26. Qe8+ {[%emt 0:02:30]} Kg7 {[%emt 0:01:30]} 27. Ref4 {[%emt 0:02:30]} Qe7 {[%emt 0:00:30]} 28. Rxf7+ {[%emt 0:01:30]} Qxf7 {[%emt 0:00:30]} 29. Rxf7+ {[%emt 0:00:30]} Rxf7 {[%emt 0:00:30]} 30. Qe5+ {[%emt 0:00:30]} Kg8 {[%emt 0:00:30]} 31. g3 {[%emt 0:00:30]} h6 {[%emt 0:00:30]} 32. Kg2 {[%emt 0:00:30]} Rgf6 {[%emt 0:00:30]} 33. h4 {[%emt 0:06:01]} Rf2+ {[%emt 0:03:30]} 34. Kh3 {[%emt 0:00:11]} Kh7 {[%emt 0:04:59]} 35. Qe4+ {[%emt 0:02:02]} Kg7 {[%emt 0:00:01]} 36. a4 {[%emt 0:00:59]} R2f5 {[%emt 0:00:29]} 37. axb5 {[%emt 0:01:17]} axb5 {[%emt 0:00:02]} 38. c4 {[%emt 0:02:42]} bxc4 {[%emt 0:00:11]} 39. Qxc4 {[%emt 0:00:40]} h5 {[%emt 0:00:03]} 40. Qd4+ {[%emt 0:00:00]} Kh7 {[%emt 0:00:00]} 1/2-1/2